bitfinex/quotes_ETHUSD_20220731
["timestamp","ask_amount","ask_price","bid_price","bid_amount"]
[1659297412071,0.2904751,1721.4,1721.2,4.5]
[1659297416124,0.5903735,1721.5,1721.2,4.5]
[1659297416311,0.3,1721.5,1721.3,0.29037]
[1659297416509,9.32977234,1721.8,1721.4,1.45191]
[1659297416740,9.90291906,1721.8,1721.4,1.45191]
[1659297416925,0.3,1721.6,1721.4,1.45191]
[1659297417104,9.90291906,1721.8,1721.4,5.95191]
[1659297418133,0.2903831,1721.5,1721.4,5.95191]
[1659297418333,0.5903831,1721.5,1721.4,5.95191]
[1659297419139,0.5903831,1721.5,1721.4,1.45191]
[1659297419655,0.5903831,1721.5,1721.3,6.24239]
[1659297420028,3.39804672,1721.4,1721.0,0.05]
[1659297420224,3.93524672,1721.3,1720.9,0.00282923]
[1659297420457,6.7,1721.0,1720.9,0.00282923]
[1659297420626,7.801,1721.0,1720.9,0.00282923]
[1659297420808,10.69904672,1721.0,1720.9,0.00282923]
[1659297421011,10.69904672,1721.0,1720.6,0.04270803]
[1659297421012,26.60518767,1721.0,1720.6,0.04270803]
[1659297421241,3.33434672,1720.9,1720.6,0.04270803]
[1659297421451,2.89804672,1720.8,1720.6,0.04270803]
[1659297421662,5.82377815,1720.7,1720.6,0.04270803]
[1659297422011,6.02377815,1720.7,1720.6,0.04270803]
[1659297422240,8.92182487,1720.7,1720.6,0.04270803]
[1659297422663,9.35812487,1720.7,1720.6,0.04270803]
[1659297423213,9.55812487,1720.7,1720.6,0.04270803]
[1659297423461,3.29804672,1720.7,1720.6,0.04270803]
[1659297424132,8.61837604,1720.7,1720.6,0.04270803]
[1659297424759,8.56837604,1720.7,1720.6,0.04270803]
[1659297430070,8.21837604,1720.7,1720.6,0.04270803]
[1659297430824,3.5,1720.6,1720.0,11.86059639]
[1659297431026,3.5,1720.6,1720.0,10.12877435]
[1659297431027,5.5434654,1720.6,1720.0,10.12877435]
[1659297431225,2.0434654,1720.6,1720.0,10.12877435]
[1659297431740,2.0434654,1720.6,1720.0,10.42791143]
[1659297434560,3.4965385,1720.6,1720.0,8.97505143]
[1659297434774,5.5314262,1720.5,1720.0,8.62536895]
[1659297434946,6.1324262,1720.5,1720.0,8.37536895]
[1659297435132,6.4324262,1720.5,1720.0,8.37536895]
[1659297435334,0.2906766,1720.4,1720.0,8.37536895]
[1659297435534,0.2906766,1720.4,1720.0,8.0812]
[1659297436435,2.89804672,1720.3,1719.9,3.0]
[1659297436632,3.48871352,1720.3,1719.9,3.0]
[1659297438172,4.94190662,1720.3,1719.9,3.0]
[1659297438374,5.09190662,1720.3,1719.7,3.17066942]
[1659297438589,0.290663,1720.1,1719.7,3.3]
[1659297438915,1.7439784,1720.1,1719.7,3.3]
[1659297439113,2.0439784,1720.1,1719.7,3.3]
[1659297441214,0.590663,1720.1,1719.7,3.3]
[1659297442818,2.0440643,1720.1,1719.6,8.19657658]
[1659297443314,2.0440643,1720.1,1719.6,8.19364622]
[1659297445017,2.0440643,1720.1,1719.6,9.64698622]
[1659297445604,2.0440643,1720.1,1719.6,8.19364622]
[1659297447049,2.89804672,1720.0,1719.5,1.74044759]
[1659297447260,3.19804672,1720.0,1719.5,4.74044759]
[1659297447422,1.7442169,1719.9,1719.5,3.2840269]
[1659297447623,0.3,1719.8,1719.5,3.2840269]
[1659297448037,0.3,1719.8,1719.5,0.2840269]
[1659297448038,2.89804672,1719.7,1719.5,0.2840269]
[1659297448240,12.879,1719.6,1719.4,0.00300059]
[1659297448416,3.19804672,1719.5,1719.4,0.00300059]
[1659297448624,0.3,1719.5,1719.4,0.00300059]
[1659297448946,0.3,1719.5,1719.0,0.25]
[1659297449150,8.4002,1719.7,1719.0,0.2]
[1659297449316,8.3502,1719.7,1719.0,0.2]
[1659297449584,0.290746,1719.6,1719.0,0.2]
[1659297449784,2.89804672,1719.5,1719.0,0.2]
[1659297450009,2.89804672,1719.5,1719.0,3.2]
[1659297450010,3.48883692,1719.5,1719.0,3.2]
[1659297450635,4.94276152,1719.5,1719.0,3.2]
[1659297451690,1.4539332,1719.4,1719.0,3.2]
[1659297452009,3.48887392,1719.3,1719.0,3.2]
[1659297452203,0.5908272,1719.3,1719.0,0.2]
[1659297452414,0.2908272,1719.3,1719.0,0.2]
[1659297453612,0.2908272,1719.3,1719.0,1.65375]
[1659297453814,0.2908272,1719.3,1719.0,0.2]
[1659297454539,1.7447455,1719.3,1719.0,0.2]
[1659297454713,0.3,1719.2,1719.0,0.2]
[1659297454916,0.5908159,1719.2,1719.0,0.2]
[1659297455128,2.0448954,1719.2,1719.0,0.2]
[1659297455844,2.0448954,1719.2,1719.1,0.38979211]
[1659297455845,0.3,1719.2,1719.1,0.38979211]
[1659297456046,2.8127,1719.6,1719.1,0.38979211]
[1659297456259,3.0627,1719.6,1719.1,0.38979211]
[1659297456553,0.2907343,1719.4,1719.1,0.38979211]
[1659297456725,3.0627,1719.6,1719.1,2.13417211]
[1659297457460,3.0627,1719.6,1719.2,1.45361]
[1659297457619,0.2907241,1719.5,1719.2,1.74431]
[1659297457956,0.05,1719.8,1719.4,0.05]
[1659297458145,0.05,1720.1,1719.4,9.74804672]
[1659297458341,7.7848,1720.2,1719.5,0.17598436]
[1659297458648,7.7348,1720.2,1719.5,0.17598436]
[1659297459018,10.63284672,1720.2,1719.5,0.17598436]
[1659297459562,10.93284672,1720.2,1719.5,0.52069871]
[1659297459763,10.93284672,1720.2,1719.5,0.34778046]
[1659297460742,10.93284672,1720.2,1719.5,0.34471435]
[1659297460938,2.89804672,1720.1,1719.5,0.34471435]
[1659297461143,2.89804672,1720.1,1719.5,0.34778046]
[1659297461863,5.71544672,1720.1,1719.5,0.34778046]
[1659297462156,3.19804672,1720.0,1719.5,0.34471435]
[1659297462531,0.2906928,1719.9,1719.5,0.34471435]
[1659297462745,0.2906928,1719.9,1719.5,0.3477805]
[1659297463756,0.2906928,1719.9,1719.5,0.34471435]
[1659297464494,4.65146312,1720.0,1719.5,0.34471435]
[1659297464495,0.2906893,1719.8,1719.5,0.34471435]
[1659297465235,1.7441746,1719.8,1719.5,1.79812435]
[1659297465648,2.0441746,1719.8,1719.5,1.79812435]
[1659297465966,0.2906878,1719.7,1719.5,1.79812435]
[1659297468384,0.2906878,1719.7,1719.5,0.34471435]
[1659297469630,0.28858344,1719.7,1719.5,0.34471435]
[1659297472741,0.28858344,1719.7,1719.5,1.79816435]
[1659297477046,0.28858344,1719.7,1719.5,1.78816435]
[1659297483515,0.28858344,1719.7,1719.5,0.33471435]
[1659297484439,0.28858344,1719.7,1719.5,1.78814435]
[1659297485737,0.2906799,1719.8,1719.5,1.78814435]
[1659297488257,1.7441015,1719.8,1719.5,1.78814435]
[1659297488598,0.590684,1719.8,1719.5,1.78814435]
[1659297489009,1.7534216,1719.8,1719.5,1.78814435]
[1659297489767,0.2906861,1719.7,1719.5,1.78814435]
[1659297490303,0.2906861,1719.7,1719.5,1.45343]
[1659297495839,0.2906861,1719.7,1719.4,1.79234929]
[1659297496052,0.2906861,1719.7,1719.4,3.33880929]
[1659297496404,0.2906861,1719.7,1719.5,1.45348]
[1659297498777,0.2906861,1719.7,1719.4,3.33880929]
[1659297499854,0.2906861,1719.7,1719.4,4.79231929]
[1659297500044,5.75203463,1719.5,1719.4,0.04427841]
[1659297500248,6.20203463,1719.5,1719.2,0.00299827]
[1659297500479,7.94693303,1719.5,1719.2,0.00299827]
[1659297500682,7.94693303,1719.5,1719.0,0.2]
[1659297500683,8.0,1719.2,1719.0,0.2]
[1659297500889,14.98514672,1719.1,1719.0,0.2]
[1659297501070,11.54804672,1719.1,1719.0,0.2]
[1659297501250,11.55804672,1719.1,1719.0,0.2]
[1659297503120,14.51484672,1719.1,1719.0,0.2]
[1659297506503,14.51484672,1719.1,1719.0,0.19792653]
[1659297508668,6.51484672,1719.1,1719.0,0.19792653]
[1659297511619,6.51484672,1719.1,1719.0,0.09792653]
[1659297512859,6.31484672,1719.1,1719.0,0.09792653]
[1659297513747,6.31484672,1719.1,1717.9,0.46811897]
[1659297513748,0.35,1718.1,1717.9,0.46811897]
[1659297513949,0.35,1718.1,1717.2,2.0]
[1659297513950,4.106,1718.0,1717.2,8.46318386]
[1659297514170,4.106,1718.0,1716.8,5.02934044]
[1659297514171,5.66753521,1717.8,1716.9,14.5626]
[1659297514468,5.96753521,1717.8,1717.1,0.0660476]
[1659297514623,2.66447153,1717.6,1716.9,11.10364276]
[1659297515028,0.15,1717.4,1716.9,8.46749516]
[1659297515251,0.15,1717.4,1716.9,8.58817425]
[1659297515419,0.1,1717.4,1716.9,8.58817425]
[1659297516927,2.99804672,1717.4,1716.9,8.58817425]
[1659297517125,0.03382263,1717.3,1716.9,0.29567425]
[1659297517333,0.03382263,1717.3,1716.6,0.05]
[1659297517683,0.03382263,1717.3,1716.7,0.33471435]
[1659297517684,0.01,1717.2,1716.7,0.33471435]
[1659297518376,0.03382263,1717.3,1716.7,0.33471435]
[1659297518527,0.03382263,1717.3,1716.7,0.28471435]
[1659297518929,0.03382263,1717.3,1716.8,2.89804672]
[1659297520986,0.06235048,1717.3,1716.8,2.89804672]
[1659297521370,0.06235048,1717.3,1716.8,2.91373209]
[1659297522135,0.06235048,1717.3,1716.9,0.28471435]
[1659297522337,0.06235048,1717.3,1717.0,2.91373026]
[1659297522683,0.06235048,1717.3,1717.1,3.0]
[1659297522890,0.06235048,1717.3,1717.1,3.28471435]
[1659297523244,0.06235048,1717.3,1717.1,6.18276107]
[1659297524789,0.06235048,1717.3,1717.2,2.89804672]
[1659297525243,0.06235048,1717.3,1717.2,5.89804672]
[1659297535110,0.06235048,1717.3,1717.2,3.0]
[1659297535414,0.06235048,1717.3,1717.2,5.89804672]
[1659297538237,0.36235048,1717.3,1717.2,3.0]
[1659297538440,0.36235048,1717.3,1717.1,3.57606514]
[1659297540870,0.36235048,1717.3,1717.1,3.52606514]
[1659297541492,0.36235048,1717.3,1717.2,2.89804672]
[1659297541864,0.36235048,1717.3,1717.2,5.89804672]
[1659297542066,0.36235048,1717.3,1717.2,5.92978633]
[1659297542317,0.03382263,1717.3,1717.2,6.02978633]
[1659297542603,1.4551109,1718.0,1717.2,6.02978633]
[1659297542604,0.4373,1718.4,1717.6,0.1]
[1659297542803,0.4373,1718.5,1717.8,0.1]
[1659297543005,0.4373,1718.5,1717.8,5.99804672]
[1659297543178,0.4373,1718.5,1717.8,3.0]
[1659297543179,2.94804671,1718.5,1717.8,3.0]
[1659297543381,2.6763316,1718.3,1717.8,3.0]
[1659297543611,6.01177832,1718.3,1717.8,3.0]
[1659297543798,0.04999999,1718.2,1717.8,3.0]
[1659297544303,5.81177831,1718.3,1717.9,0.04312766]
[1659297544459,5.9108458,1718.0,1717.9,0.04312766]
[1659297545363,2.92708068,1718.2,1717.9,0.04312766]
[1659297545364,0.02903396,1718.2,1717.9,0.04312766]
[1659297545877,11.47149235,1718.0,1717.9,0.04312766]
[1659297546079,11.37149235,1718.0,1717.9,0.04312766]
[1659297546509,11.37149235,1718.0,1717.9,0.00012766]
[1659297546661,7.8,1717.9,1717.5,0.05]
[1659297546861,7.8,1717.9,1717.4,8.1415]
[1659297546862,8.406,1717.9,1717.4,8.1415]
[1659297547275,0.2910641,1717.8,1717.6,0.00330823]
[1659297547905,0.2910641,1717.8,1717.4,8.1749015]
[1659297548322,0.35106411,1717.8,1717.4,8.1749015]
[1659297548921,0.45106411,1717.8,1717.3,0.00341168]
[1659297549092,0.1,1717.5,1717.3,0.00341168]
[1659297549289,1.90688281,1717.5,1717.3,0.00341168]
[1659297549526,1.90688281,1717.5,1717.0,0.34090195]
[1659297549733,0.3,1717.4,1717.0,0.29090195]
[1659297549891,0.46000001,1717.5,1716.9,7.6984]
[1659297550091,0.46000001,1717.5,1717.1,0.00341183]
[1659297550293,0.16000001,1717.5,1717.1,0.00341183]
[1659297550893,2.81293387,1717.5,1716.9,7.6984]
[1659297551124,0.2911163,1717.4,1716.9,8.01652557]
[1659297551559,0.5911163,1717.4,1717.0,0.00290121]
[1659297552371,0.5911163,1717.4,1716.9,8.01652557]
[1659297552670,0.5911163,1717.4,1716.9,8.31652557]
[1659297552978,0.5911163,1717.4,1717.0,3.0]
[1659297553328,0.5911163,1717.4,1716.9,8.01990149]
[1659297553729,0.5911163,1717.4,1716.9,8.01652557]
[1659297556644,0.1,1717.3,1716.9,7.6984]
[1659297557040,0.1,1717.3,1716.8,5.7349]
[1659297557041,0.1,1717.1,1716.8,0.00292865]
[1659297557227,5.5,1716.8,1716.5,0.05]
[1659297557429,0.1,1716.6,1716.2,0.05]
[1659297557627,6.8289226,1716.8,1716.0,0.82187013]
[1659297557828,15.60964672,1716.8,1716.0,0.82187013]
[1659297558478,5.55760768,1716.6,1716.0,0.82187013]
[1659297558707,6.5,1716.5,1716.0,0.59774028]
[1659297559025,17.1847223,1716.6,1716.0,0.59774028]
[1659297559026,0.7378,1716.4,1716.0,0.3]
[1659297559185,0.5912944,1716.4,1716.0,0.3]
[1659297559384,0.2912944,1716.4,1716.0,0.3]
[1659297559582,0.8290944,1716.4,1716.0,0.3]
[1659297559797,0.6842012,1715.5,1715.3,0.40600818]
[1659297559999,0.9842012,1715.5,1715.3,0.40600818]
[1659297560519,1.04420121,1715.5,1715.3,0.40600818]
[1659297560673,0.9842012,1715.5,1715.3,0.40600818]
[1659297561378,1.01444874,1715.5,1715.3,0.40600818]
[1659297561819,1.01444874,1715.5,1715.4,0.17598436]
[1659297562121,1.01444874,1715.5,1715.4,3.0881307]
[1659297562122,0.71444874,1715.5,1715.4,3.0881307]
[1659297562679,0.71444874,1715.5,1715.4,2.91214634]
[1659297562922,1.94344874,1715.5,1715.3,0.40600818]
[1659297563080,1.94344874,1715.5,1715.4,0.57059215]
[1659297563279,1.94344874,1715.5,1715.3,0.40600818]
[1659297563524,1.01444874,1715.5,1715.3,0.40600818]
[1659297564013,1.01444874,1715.5,1715.3,3.3040549]
[1659297565183,1.01444874,1715.5,1715.3,3.58876924]
[1659297565398,1.01444874,1715.5,1715.4,2.89804672]
[1659297565933,1.01444874,1715.5,1715.4,2.99804672]
[1659297566252,1.01444874,1715.5,1715.4,5.99804672]
[1659297566455,1.01444874,1715.5,1715.4,5.89804672]
[1659297566771,9.0443,1716.3,1715.4,5.89804672]
[1659297566772,2.7256,1716.9,1715.8,3.01857992]
[1659297566932,2.7256,1716.9,1715.9,5.94804672]
[1659297567133,2.7256,1716.9,1716.0,2.94804672]
[1659297567351,0.4377,1716.8,1716.0,2.94804672]
[1659297567514,0.06000001,1716.7,1716.1,0.29880821]
[1659297567953,0.06000001,1716.7,1716.2,2.89804672]
[1659297568256,0.4376,1717.2,1716.6,0.1]
[1659297568413,0.4376,1717.2,1716.6,2.99804672]
[1659297568612,14.0262,1717.3,1716.7,3.0]
[1659297568812,14.08620001,1717.3,1716.7,3.0]
[1659297569159,13.64860001,1717.3,1716.7,3.0]
[1659297569475,0.05,1717.5,1716.8,2.89804672]
[1659297569613,0.05,1717.5,1716.9,3.0]
[1659297569813,0.05,1717.7,1717.0,2.89804672]
[1659297570043,0.05,1717.8,1717.1,3.10689962]
[1659297570236,8.0333,1717.9,1717.2,2.89804672]
[1659297570475,11.54330001,1717.9,1717.1,0.05]
[1659297570686,0.7286104,1717.8,1717.1,0.05]
[1659297570840,7.2286104,1717.8,1717.0,0.05]
[1659297571041,10.0739104,1717.8,1717.0,0.05]
[1659297571292,0.06000001,1717.7,1717.0,0.05]
[1659297571469,2.95804673,1717.7,1716.9,0.05]
[1659297571673,2.95804673,1717.7,1717.0,0.28471434]
[1659297571992,0.36000001,1717.7,1717.0,3.18276106]
[1659297572549,2.89804672,1717.6,1716.9,0.05]
[1659297572895,2.89804672,1717.6,1716.8,0.05]
[1659297572896,5.49974801,1717.5,1716.8,0.05]
[1659297573061,5.49974801,1717.5,1716.6,0.29640393]
[1659297573062,2.89804672,1717.4,1716.7,0.05]
[1659297573264,0.4376,1717.3,1716.6,0.05]
[1659297573592,0.79760001,1717.3,1716.6,2.89804672]
[1659297573812,0.79760001,1717.3,1716.5,0.05]
[1659297573813,3.69564673,1717.3,1716.5,0.05]
[1659297574042,6.97904673,1717.3,1716.6,0.28471434]
[1659297574717,0.1,1717.2,1716.6,0.28471434]
[1659297576479,6.91904672,1717.3,1716.6,0.28471434]
[1659297577285,6.91904672,1717.3,1716.6,0.3996191]
[1659297577727,4.021,1717.3,1716.6,3.29766582]
[1659297578617,0.06000001,1717.2,1716.6,3.29766582]
[1659297578857,0.1,1716.8,1716.5,0.33954409]
[1659297579163,0.1,1716.5,1716.2,0.05]
[1659297579332,0.1,1716.5,1716.0,8.16857312]
[1659297579516,0.1,1716.5,1716.0,8.46444771]
[1659297579715,0.1,1716.6,1716.3,0.00344022]
[1659297579915,0.1,1716.6,1716.3,2.90148694]
[1659297580156,0.1,1716.6,1716.3,3.19735958]
[1659297580659,0.1,1716.6,1716.3,3.19391936]
[1659297583357,0.1,1716.6,1716.1,0.00292141]
[1659297583560,0.1,1716.6,1716.1,5.89804672]
[1659297583997,0.05,1716.8,1716.3,6.59804672]
[1659297584191,0.4376,1717.4,1716.7,0.2]
[1659297584192,0.05,1717.0,1716.7,0.2]
[1659297584391,0.05,1717.3,1716.7,3.09804672]
[1659297584577,3.2201,1717.4,1716.8,0.17598436]
[1659297584989,3.2201,1717.4,1716.6,0.05]
[1659297585254,3.2201,1717.4,1716.6,2.94804672]
[1659297585451,3.8577,1717.4,1716.6,2.94804672]
[1659297585747,4.4577,1717.4,1716.6,2.94804672]
[1659297585951,4.4577,1717.4,1716.7,0.3996191]
[1659297586135,3.2,1716.8,1716.6,0.05]
[1659297586336,3.2,1716.8,1716.3,0.00389369]
[1659297586663,0.3,1716.8,1716.3,2.90194041]
[1659297586865,10.9779,1717.0,1716.4,2.89804672]
[1659297587073,10.9279,1717.0,1716.4,2.89804672]
[1659297587423,10.9279,1717.0,1716.5,0.29586498]
[1659297587622,10.9279,1717.0,1716.6,2.89804672]
[1659297587840,5.31083974,1717.1,1716.6,3.19804672]
[1659297588039,0.341162,1717.3,1716.8,0.2]
[1659297588040,0.05,1717.3,1716.8,0.2]
[1659297588270,6.59804672,1717.2,1716.6,0.05]
[1659297588567,3.62699172,1717.1,1716.5,0.05]
[1659297588718,3.62699172,1717.1,1716.3,0.05]
[1659297588719,6.58469172,1717.1,1716.3,0.05]
[1659297588960,3.686645,1717.1,1716.5,2.89804672]
[1659297589160,3.60894501,1717.1,1716.5,2.89804672]
[1659297589773,3.60894501,1717.1,1716.6,0.28471434]
[1659297590177,3.60894501,1717.1,1716.6,3.18276106]
[1659297590377,3.60894501,1717.1,1716.6,0.28471434]
[1659297590801,0.7787156,1717.3,1716.7,2.89804672]
[1659297590969,6.1778,1717.4,1716.8,3.28471434]
[1659297591170,2.9577,1717.4,1716.9,2.89804672]
[1659297591564,11.77,1717.6,1717.3,0.2]
[1659297591923,11.77,1717.6,1717.4,2.89804672]
[1659297591924,11.72,1717.6,1717.4,2.89804672]
[1659297592087,7.73,1717.9,1717.5,3.0]
[1659297592285,7.73,1717.9,1717.5,5.89804672]
[1659297592484,7.73,1717.9,1717.5,6.18276106]
[1659297595065,8.03,1717.9,1717.5,6.18276106]
[1659297595666,8.3210222,1717.9,1717.5,6.18276106]
[1659297597344,8.3210222,1717.9,1717.5,0.28471434]
[1659297600382,8.3210222,1717.9,1717.6,0.09651812]
[1659297600580,8.0210222,1717.9,1717.7,0.28471434]
[1659297600793,0.2909669,1718.1,1717.8,2.89804672]
[1659297600976,0.2909669,1718.1,1717.7,0.28471434]
[1659297601810,1.7460206,1718.1,1717.7,0.28471434]
[1659297602401,6.7460206,1718.1,1717.7,0.28471434]
[1659297602782,0.36000001,1718.0,1717.5,0.05]
[1659297602991,0.2,1717.5,1716.5,0.29729016]
[1659297603314,0.4376,1717.4,1716.5,7.7918]
[1659297603616,0.2,1717.3,1716.5,7.7918]
[1659297603794,0.49760001,1717.2,1716.6,0.11490476]
[1659297603997,0.06000001,1717.2,1716.6,0.3996191]
[1659297604322,3.2677,1717.4,1716.7,0.2]
[1659297604463,3.2177,1717.4,1716.8,0.11490476]
[1659297604663,0.35,1717.6,1717.0,0.2]
[1659297604915,0.3,1717.6,1717.2,0.2]
[1659297605063,22.8561,1717.9,1717.2,0.2]
[1659297605263,23.1061,1717.9,1717.2,0.5996191]
[1659297605464,23.1061,1717.9,1717.3,2.89804672]
[1659297607943,23.16610001,1717.9,1717.3,2.89804672]
[1659297608613,23.75711451,1717.9,1717.3,2.89804672]
[1659297609230,23.45711451,1717.9,1717.3,2.91264342]
[1659297609472,2.89804672,1717.8,1717.3,0.0145967]
[1659297609676,0.49750001,1717.8,1717.3,0.0145967]
[1659297609984,0.2910514,1717.7,1717.3,0.0145967]
[1659297612275,7.2910514,1717.7,1717.3,0.0145967]
[1659297612461,8.0285514,1717.7,1717.3,0.0145967]
[1659297614749,8.0285514,1717.7,1717.3,4.3483247]
[1659297615266,1.0285514,1717.7,1717.3,4.3483247]
[1659297615417,0.5910514,1717.7,1717.3,4.3483247]
[1659297615997,2.8573,1717.8,1717.4,3.18276106]
[1659297617129,3.2943,1718.1,1717.5,0.2]
[1659297617414,3.2443,1718.1,1717.6,0.28471434]
[1659297617821,25.80626505,1718.3,1717.7,0.2]
[1659297617822,23.0722,1718.3,1717.7,0.2]
[1659297618004,22.5848,1718.3,1717.7,0.48471434]
[1659297618209,11.9022,1718.3,1717.7,0.48471434]
[1659297618981,11.9022,1718.3,1717.7,3.39679385]
[1659297619182,11.4648,1718.3,1717.7,3.39679385]
[1659297619829,11.1648,1718.3,1717.7,3.39679385]
[1659297620329,11.455764,1718.3,1717.7,3.39679385]
[1659297621236,11.455764,1718.3,1717.7,3.68774385]
[1659297621598,11.51576401,1718.3,1717.7,3.68774385]
[1659297621805,11.51576401,1718.3,1717.7,5.14250385]
[1659297622386,11.51576401,1718.3,1717.7,3.68774385]
[1659297622586,11.51576401,1718.3,1717.7,3.97296969]
[1659297623033,3.57176401,1718.3,1717.7,3.97296969]
[1659297623319,3.57176401,1718.3,1718.0,0.2]
[1659297627143,4.30916401,1718.3,1718.0,0.2]
[1659297627751,0.290964,1718.3,1718.2,0.0145967]
[1659297628236,14.8173,1718.4,1718.2,0.0145967]
[1659297629022,12.02,1718.4,1718.2,0.0145967]
[1659297629219,0.2909158,1718.3,1718.2,0.0145967]
[1659297632099,12.02,1718.4,1718.2,0.6035967]
[1659297632535,12.02,1718.4,1718.2,0.0145967]
[1659297634061,12.02,1718.4,1718.3,0.05089721]
[1659297634209,0.3,1718.4,1718.3,0.05089721]
[1659297634434,11.13729301,1718.5,1718.3,0.05089721]
[1659297634734,11.13729301,1718.5,1718.3,0.06549391]
[1659297635697,12.59192781,1718.5,1718.3,0.06549391]
[1659297636332,15.48997453,1718.5,1718.3,0.06549391]
[1659297636602,9.6813,1718.4,1718.3,0.06549391]
[1659297637515,12.42934672,1718.4,1718.3,0.06549391]
[1659297638202,12.72934672,1718.4,1718.3,0.06549391]
[1659297638369,15.72934672,1718.4,1718.3,0.06549391]
[1659297639396,15.72934672,1718.4,1718.3,9.391e-05]
[1659297639889,15.44204672,1718.4,1718.3,9.391e-05]
[1659297640174,3.044,1718.4,1718.3,9.391e-05]
[1659297640372,2.744,1718.4,1718.3,9.391e-05]
[1659297640575,5.64204672,1718.4,1718.3,9.391e-05]
[1659297642007,6.30641633,1718.4,1718.3,9.391e-05]
[1659297643041,3.40836961,1718.4,1718.3,9.391e-05]
[1659297645112,2.76836961,1718.4,1718.3,9.391e-05]
[1659297645529,0.02436961,1718.4,1718.3,9.391e-05]
[1659297646120,0.02436961,1718.4,1718.3,0.03373151]
[1659297646947,9.83552781,1718.5,1718.3,0.03373151]
[1659297652054,9.83552781,1718.5,1718.3,0.06337782]
[1659297652590,9.53552781,1718.5,1718.3,0.06337782]
[1659297653068,9.53552781,1718.5,1718.3,0.02974022]
[1659297653786,9.83552781,1718.5,1718.3,0.02974022]
[1659297656894,9.83552781,1718.5,1718.3,0.0592575]
[1659297659320,8.320893,1718.5,1718.3,0.0592575]
[1659297659515,7.73,1718.5,1718.3,2.95730422]
[1659297660088,7.73,1718.5,1718.4,0.88852295]
[1659297660518,0.05,1718.9,1718.4,0.88852295]
[1659297660702,8.1531,1719.0,1718.3,0.0592575]
[1659297660703,2.89804672,1718.8,1718.3,0.0592575]
[1659297660896,5.62682966,1718.8,1718.3,0.0592575]
[1659297661130,2.89804672,1718.7,1718.3,0.0592575]
[1659297661449,0.06000001,1718.6,1718.3,0.0592575]
[1659297661581,2.84550001,1718.6,1718.3,0.0592575]
[1659297661780,3.28280001,1718.6,1718.3,0.0592575]
[1659297662330,0.05,1718.9,1718.6,0.2]
[1659297662484,0.3,1719.0,1718.6,0.2]
[1659297663028,0.3,1719.0,1718.5,0.03216226]
[1659297663181,3.2535,1719.0,1718.5,0.03216226]
[1659297663582,12.0506,1719.0,1718.5,0.02901274]
[1659297663816,11.67340001,1719.0,1718.5,0.02901274]
[1659297664027,11.96428151,1719.0,1718.6,0.03219906]
[1659297664207,2.9535,1718.9,1718.6,0.03219906]
[1659297665033,2.9535,1718.9,1718.6,0.06419461]
[1659297665414,2.9535,1718.9,1718.6,0.35502461]
[1659297666014,11.9480815,1719.0,1718.7,0.57554434]
[1659297666334,5.24318142,1719.0,1718.6,0.06419461]
[1659297666480,2.7462,1718.9,1718.6,0.06419461]
[1659297666909,2.40513471,1719.0,1718.6,0.06419461]
[1659297667113,0.2908317,1718.9,1718.7,0.29083]
[1659297667528,3.18887842,1718.9,1718.6,0.06419461]
[1659297667709,0.06000001,1718.8,1718.6,0.06419461]
[1659297668707,2.95804673,1718.8,1718.6,0.06419461]
[1659297669133,5.86646702,1718.4,1718.2,0.05]
[1659297669286,6.16646702,1718.4,1717.9,0.05]
[1659297669487,6.22646703,1718.4,1717.8,0.17073376]
[1659297669688,0.36000001,1718.4,1717.9,2.89804672]
[1659297669925,0.06000001,1718.4,1717.9,2.89804672]
[1659297670723,0.06000001,1718.4,1718.0,3.0]
[1659297670925,0.06000001,1718.4,1718.0,3.32387819]
[1659297671130,0.06000001,1718.4,1718.0,0.32387819]
[1659297671332,0.06000001,1718.4,1718.0,0.4102542]
[1659297672089,0.06000001,1718.4,1718.0,0.7011742]
[1659297672494,0.35092991,1718.4,1718.0,0.7011742]
[1659297672736,0.3,1718.4,1718.0,4.2011742]
[1659297673040,3.1975,1718.6,1718.0,8.55372092]
[1659297673193,3.1975,1718.6,1718.0,8.72970528]
[1659297673194,3.4975,1718.6,1718.0,8.72970528]
[1659297673396,3.4975,1718.6,1718.1,2.89804672]
[1659297673595,0.3,1718.6,1718.3,0.2]
[1659297673822,0.5908736,1718.7,1718.3,1.9451]
[1659297674320,0.5908736,1718.7,1718.3,2.22981434]
[1659297674708,0.5908736,1718.7,1718.3,3.48406434]
[1659297674917,0.2908736,1718.7,1718.3,3.48406434]
[1659297675237,0.2908736,1718.7,1718.5,1.74513]
[1659297675616,0.2908736,1718.7,1718.5,0.29085]
[1659297675795,0.0408736,1718.7,1718.5,0.29085]
[1659297676305,1.4953073,1718.7,1718.5,0.29085]
[1659297676534,1.7953073,1718.7,1718.5,1.7452]
[1659297677435,6.22497948,1718.6,1718.5,1.7452]
[1659297680341,6.22497948,1718.6,1718.5,0.29085]
[1659297680954,6.22497948,1718.6,1718.3,0.75264459]
[1659297681481,6.22497948,1718.6,1718.3,1.04352459]
[1659297681663,0.3408736,1718.7,1718.4,0.00424143]
[1659297681962,0.3408736,1718.7,1718.5,0.03922555]
[1659297683271,6.00799862,1718.6,1718.5,0.03922555]
[1659297685739,8.90604534,1718.6,1718.5,0.03922555]
[1659297685933,12.70604534,1718.6,1718.2,0.03922696]
[1659297686133,2.89804672,1718.5,1718.2,0.03922696]
[1659297686573,0.3,1718.4,1718.2,0.03922696]
[1659297686782,3.25804673,1718.4,1718.2,0.03922696]
[1659297686981,3.54905333,1718.4,1718.2,0.03922696]
[1659297687164,3.54905333,1718.4,1718.1,4.33045]
[1659297688284,1.4549693,1718.3,1718.1,4.33045]
[1659297689452,5.58900001,1718.2,1718.1,4.33045]
[1659297689652,5.58900001,1718.2,1717.7,0.05]
[1659297689653,1.7463522,1718.1,1717.7,0.05]
[1659297689884,0.3,1718.0,1717.5,0.33580716]
[1659297690081,0.06000001,1717.9,1717.3,0.05]
[1659297690281,0.06000001,1717.9,1717.3,0.06993453]
[1659297690282,1.7464678,1717.8,1717.3,0.06993453]
[1659297690436,1.7464678,1717.8,1717.3,0.35464887]
[1659297690637,3.19804672,1717.7,1717.1,0.05]
[1659297690876,1.7470208,1717.5,1717.0,0.05]
[1659297691069,0.2911701,1717.5,1716.8,0.05]
[1659297691251,0.2911701,1717.5,1716.7,8.0064]
[1659297691252,2.89804672,1717.4,1716.7,8.0064]